fUST/lending_fUST_20250204
["ID","MTS","AMOUNT","RATE_DAILY","PERIOD"]
[351580170,1738639834570,-552.12465141,0.00016438,2]
[351580171,1738639834579,-515.47732607,0.00016438,2]
[351580172,1738639834589,-500.0,0.00016438,2]
[351580173,1738639834598,-519.10542643,0.00016438,2]
[351580174,1738639834608,-1211.0,0.00016438,2]
[351580175,1738639834617,-500.0,0.00016438,2]
[351580176,1738639834627,-503.9969487,0.00016438,2]
[351580177,1738639834636,-503.63334636,0.00016438,2]
[351580178,1738639834645,-502.10718508,0.00016438,2]
[351580179,1738639834655,-1151.0,0.00016438,2]
[351580180,1738639834664,-507.08789795,0.00016438,2]
[351580181,1738639834673,-501.65455518,0.00016438,2]
[351580182,1738639834683,-507.71889582,0.00016438,2]
[351580183,1738639834692,-500.0,0.00016438,2]
[351580184,1738639834702,-500.0,0.00016438,2]
[351580185,1738639834711,-500.0,0.00016438,2]
[351580186,1738639834720,-505.47658683,0.00016438,2]
[351580187,1738639834729,-500.0,0.00016438,2]
[351580188,1738639834739,-501.99855175,0.00016438,2]
[351580189,1738639834749,-500.0,0.00016438,2]
[351580190,1738639834759,-500.0,0.00016438,2]
[351580191,1738639834768,-500.0,0.00016438,2]
[351580192,1738639834778,-500.0,0.00016438,2]
[351580193,1738639834787,-500.0,0.00016438,2]
[351580194,1738639834796,-500.0,0.00016438,2]
[351580195,1738639834806,-500.0,0.00016438,2]
[351580196,1738639834815,-500.0,0.00016438,2]
[351580197,1738639834823,-421.55029442,0.00016438,2]
[351580198,1738639834832,-500.0,0.00016438,2]
[351580199,1738639834841,-500.0,0.00016438,2]
[351580200,1738639834849,-511.24714355,0.00016438,2]
[351580201,1738639834858,-506.82452803,0.00016438,2]
[351580202,1738639834867,-504.74539627,0.00016438,2]
[351580203,1738639834876,-502.79368819,0.00016438,5]
[351580204,1738639834886,-316.39793236,0.00016438,2]
[351580205,1738639834895,-501.81356883,0.00016438,2]
[351580206,1738639834904,-500.0,0.00016438,2]
[351580207,1738639834914,-518.01753633,0.00016438,2]
[351580208,1738639834924,-500.0,0.00016438,2]
[351580209,1738639834933,-500.0,0.00016438,2]
[351580210,1738639834941,-500.0,0.00016438,2]
[351580211,1738639834951,-500.0,0.00016438,2]
[351580212,1738639834960,-502.9781972,0.00016438,2]
[351580213,1738639834970,-500.0,0.00016438,2]
[351580214,1738639834979,-500.0,0.00016438,2]
[351580215,1738639834988,-500.0,0.00016438,2]
[351580216,1738639834997,-500.0,0.00016438,2]
[351580217,1738639835006,-500.0,0.00016438,2]
[351580218,1738639835015,-500.0,0.00016438,2]
[351580219,1738639835024,-500.0,0.00016438,2]
[351580220,1738639835033,-578.24,0.00016438,2]
[351580221,1738639835042,-500.0,0.00016438,2]
[351580222,1738639835051,-911.13,0.00016438,2]
[351580223,1738639835060,-500.0,0.00016438,2]
[351580224,1738639835069,-500.0,0.00016438,2]
[351580225,1738639835081,-506.22535487,0.00016438,2]
[351580226,1738639835091,-502.534027,0.00016438,2]
[351580227,1738639835193,-500.0,0.00016438,2]
[351580228,1738639835217,-500.0,0.00016438,2]
[351580229,1738639835227,-486.66321203,0.00016438,2]
[351580230,1738639835236,-503.56793399,0.00016438,2]
[351580231,1738639835245,-593.32385954,0.00016438,2]
[351580232,1738639835255,-975.97,0.00016438,2]
[351580233,1738639835264,-500.0,0.00016438,2]
[351580234,1738639835273,-500.0,0.00016438,2]
[351580235,1738639835282,-500.0,0.00016438,2]
[351580236,1738639835292,-503.6420647,0.00016438,2]
[351580237,1738639835301,-500.0,0.00016438,2]
[351580238,1738639835311,-500.0,0.00016438,2]
[351580239,1738639835320,-500.0,0.00016438,2]
[351580240,1738639835329,-508.59585944,0.00016438,2]
[351580241,1738639835339,-509.76063586,0.00016438,2]
[351580242,1738639835348,-500.0,0.00016438,2]
[351580243,1738639835357,-509.3983537,0.00016438,2]
[351580244,1738639835367,-4260.9,0.00016438,2]
[351580245,1738639835376,-517.54274188,0.00016438,2]
[351580246,1738639835386,-500.0,0.00016438,2]
[351580247,1738639835395,-502.2549291,0.00016438,2]
[351580248,1738639835404,-500.0,0.00016438,2]
[351580249,1738639835414,-504.13558274,0.00016438,2]
[351580250,1738639835423,-500.0,0.00016438,2]
[351580251,1738639835432,-500.0,0.00016438,2]
[351580252,1738639835441,-500.0,0.00016438,2]
[351580253,1738639835453,-500.0,0.00016438,2]
[351580254,1738639835463,-500.0,0.00016438,2]
[351580255,1738639835472,-500.0,0.00016438,2]
[351580256,1738639835481,-500.0,0.00016438,2]
[351580257,1738639835490,-527.77027261,0.00016438,2]
[351580258,1738639835500,-10.8772495,0.00016438,2]
[351580295,1738639837880,-405.85748006,0.00016438,2]
[351580296,1738639837892,-83.26527044,0.00016438,2]
[351580297,1738639837901,-500.0,0.00016438,2]
[351580298,1738639837910,-505.0811641,0.00016438,2]
[351580299,1738639837919,-500.0,0.00016438,2]
[351580300,1738639837929,-500.0,0.00016438,2]
[351580301,1738639837939,-500.0,0.00016438,2]
[351580302,1738639837948,-500.0,0.00016438,2]
[351580303,1738639837959,-500.0,0.00016438,2]
[351580304,1738639837968,-500.0,0.00016438,2]
[351580305,1738639837977,-500.0,0.00016438,2]
[351580306,1738639837986,-886.11,0.00016438,2]
[351580307,1738639837995,-500.0,0.00016438,2]
[351580308,1738639838005,-500.0,0.00016438,2]
[351580309,1738639838014,-500.0,0.00016438,2]
[351580310,1738639838023,-501.55619176,0.00016438,2]
[351580311,1738639838032,-504.44630711,0.00016438,2]
[351580312,1738639838041,-500.0,0.00016438,2]
[351580313,1738639838050,-505.92987176,0.00016438,2]
[351580314,1738639838060,-500.0,0.00016438,2]
[351580315,1738639838068,-500.0,0.00016438,2]
[351580316,1738639838078,-500.0,0.00016438,2]
[351580317,1738639838090,-500.0,0.00016438,2]
[351580318,1738639838099,-500.0,0.00016438,2]
[351580319,1738639838109,-500.0,0.00016438,2]
[351580321,1738639838118,-500.0,0.00016438,2]
[351580323,1738639838129,-391.21232884,0.00016438,2]
[351580324,1738639838138,-500.0,0.00016438,2]
[351580325,1738639838148,-500.0,0.00016438,2]
[351580326,1738639838157,-500.0,0.00016438,2]
[351580327,1738639838167,-502.21385777,0.00016438,2]
[351580328,1738639838177,-500.0,0.00016438,2]
[351580329,1738639838186,-500.0,0.00016438,2]
[351580330,1738639838195,-500.0,0.00016438,2]
[351580331,1738639838205,-507.54795284,0.00016438,2]
[351580332,1738639838215,-500.0,0.00016438,2]
[351580333,1738639838224,-500.0,0.00016438,2]
[351580334,1738639838233,-500.0,0.00016438,2]
[351580335,1738639838243,-520.5,0.00016438,2]
[351580336,1738639838252,-425.06445523,0.00016438,2]
[351580337,1738639838262,-500.0,0.00016438,2]
[351580339,1738639838271,-500.0,0.00016438,2]
[351580342,1738639838281,-500.0,0.00016438,2]
[351580344,1738639838290,-500.0,0.00016438,2]
[351580346,1738639838299,-500.0,0.00016438,2]
[351580348,1738639838309,-500.0,0.00016438,2]
[351580350,1738639838318,-500.0,0.00016438,2]
[351580351,1738639838327,-512.03276949,0.00016438,2]
[351580352,1738639838336,-1226.1,0.00016438,2]
[351580353,1738639838346,-500.0,0.00016438,2]
[351580354,1738639838355,-500.0,0.00016438,2]
[351580355,1738639838364,-500.0,0.00016438,2]
[351580356,1738639838374,-500.0,0.00016438,2]
[351580357,1738639838383,-999.44,0.00016438,2]
[351580358,1738639838392,-422.66609947,0.00016438,2]
[351580359,1738639838405,-77.33390053,0.00016438,2]
[351580360,1738639838414,-500.0,0.00016438,2]
[351580361,1738639838424,-500.0,0.00016438,2]
[351580362,1738639838433,-2378.31,0.00016438,2]
[351580363,1738639838442,-500.0,0.00016438,2]
[351580364,1738639838452,-503.12396351,0.00016438,2]
[351580365,1738639838461,-500.0,0.00016438,2]
[351580366,1738639838470,-500.0,0.00016438,2]
[351580367,1738639838480,-862.85,0.00016438,2]
[351580368,1738639838489,-325.74472589,0.00016438,2]
[351580369,1738639838516,-174.25527411,0.00016438,2]
[351580370,1738639838526,-1400.67,0.00016438,2]
[351580371,1738639838535,-500.0,0.00016438,2]
[351580372,1738639838545,-500.0,0.00016438,2]
[351580373,1738639838555,-500.0,0.00016438,2]
[351580374,1738639838564,-1455.3,0.00016438,2]
[351580375,1738639838574,-500.0,0.00016438,2]
[351580376,1738639838583,-500.0,0.00016438,2]
[351580377,1738639838592,-500.0,0.00016438,2]
[351580378,1738639838602,-346.5387555,0.00016438,2]
[351580379,1738639838613,-153.4612445,0.00016438,2]
[351580380,1738639838623,-1409.56,0.00016438,2]
[351580381,1738639838632,-500.0,0.00016438,2]
[351580382,1738639838641,-500.0,0.00016438,2]
[351580383,1738639838650,-500.0,0.00016438,2]
[351580384,1738639838660,-500.0,0.00016438,2]
[351580385,1738639838669,-500.0,0.00016438,2]
[351580386,1738639838678,-500.0,0.00016438,2]
[351580387,1738639838688,-500.0,0.00016438,2]
[351580388,1738639838697,-500.0,0.00016438,2]
[351580389,1738639838710,-500.0,0.00016438,2]
[351580390,1738639838719,-503.98299404,0.00016438,2]
[351580391,1738639838728,-1097.19,0.00016438,2]
[351580392,1738639838738,-838.48,0.00016438,2]
[351580393,1738639838747,-500.0,0.00016438,2]
[351580394,1738639838756,-1424.62050225,0.00016438,2]
[351580422,1738639839767,-714.78080813,0.00016438,2]
[351580423,1738639839823,-290.85868962,0.00016438,2]
[351580424,1738639839833,-39.29531038,0.00016438,2]
[351580444,1738639842856,-463.47177651,0.00016438,2]
[351580445,1738639842865,-500.0,0.00016438,2]
[351580446,1738639842875,-500.0,0.00016438,2]
[351580447,1738639842884,-500.0,0.00016438,2]
[351580448,1738639842894,-500.0,0.00016438,2]
[351580449,1738639842903,-500.0,0.00016438,2]
[351580450,1738639842913,-309.71673817,0.00016438,2]
[351580458,1738639845896,-153.0,0.00016426,2]
[351580459,1738639845907,-153.0,0.00016426,2]
[351580460,1738639845916,-190.28326183,0.00016438,2]
[351580461,1738639845926,-501.56341862,0.00016438,2]
[351580462,1738639845936,-559.93,0.00016438,2]
[351580463,1738639845945,-500.0,0.00016438,2]
[351580464,1738639845955,-500.0,0.00016438,2]
[351580465,1738639845965,-500.0,0.00016438,2]
[351580466,1738639845975,-501.45280668,0.00016438,2]
[351580467,1738639845985,-500.0,0.00016438,2]
[351580468,1738639845994,-3376.99,0.00016438,2]
[351580469,1738639846004,-928.33,0.00016438,2]
[351580470,1738639846013,-500.0,0.00016438,2]
[351580471,1738639846023,-500.0,0.00016438,2]
[351580472,1738639846033,-500.0,0.00016438,2]
[351580473,1738639846042,-500.0,0.00016438,2]
[351580474,1738639846051,-500.0,0.00016438,2]
[351580475,1738639846060,-309.94288289,0.00016438,2]
[351580476,1738639846072,-190.05711711,0.00016438,2]
[351580477,1738639846083,-500.0,0.00016438,2]
[351580478,1738639846095,-500.0,0.00016438,2]
[351580479,1738639846105,-500.0,0.00016438,2]
[351580480,1738639846114,-172.6875313,0.00016438,2]
[351580481,1738639846123,-502.03757877,0.00016438,2]
[351580482,1738639846134,-500.0,0.00016438,2]
[351580483,1738639846144,-1441.25,0.00016438,2]
[351580484,1738639846154,-500.0,0.00016438,2]
[351580485,1738639846163,-500.0,0.00016438,2]
[351580486,1738639846174,-500.0,0.00016438,2]
[351580487,1738639846184,-500.0,0.00016438,2]
[351580488,1738639846194,-500.0,0.00016438,2]
[351580489,1738639846204,-500.0,0.00016438,2]
[351580490,1738639846213,-359.10557967,0.00016438,2]
[351580491,1738639846223,-500.0,0.00016438,2]
[351580492,1738639846232,-500.0,0.00016438,2]
[351580493,1738639846242,-500.0,0.00016438,2]
[351580494,1738639846251,-500.0,0.00016438,2]
[351580495,1738639846261,-252.84548063,0.00016438,2]
[351580496,1738639846270,-500.0,0.00016438,2]
[351580497,1738639846280,-500.0,0.00016438,2]
[351580498,1738639846289,-500.0,0.00016438,2]
[351580499,1738639846298,-500.0,0.00016438,2]
[351580500,1738639846308,-500.0,0.00016438,2]
[351580501,1738639846317,-500.0,0.00016438,2]
[351580502,1738639846327,-507.76567799,0.00016438,2]
[351580503,1738639846337,-513.09933811,0.00016438,2]
[351580504,1738639846346,-1964.8,0.00016438,2]
[351580505,1738639846359,-501.77805312,0.00016438,2]
[351580506,1738639846368,-433.33214648,0.00016438,2]
[351580507,1738639846378,-500.0,0.00016438,2]
[351580508,1738639846387,-500.0,0.00016438,2]
[351580509,1738639846398,-501.59385347,0.00016438,2]
[351580510,1738639846408,-500.0,0.00016438,2]
[351580511,1738639846417,-500.0,0.00016438,2]
[351580512,1738639846427,-509.65387411,0.00016438,2]
[351580513,1738639846436,-500.0,0.00016438,2]
[351580514,1738639846446,-159.6446754,0.00016438,2]
[351580515,1738639846456,-510.21327456,0.00016438,2]
[351580516,1738639846466,-1108.01,0.00016438,2]
[351580517,1738639846475,-500.0,0.00016438,2]
[351580518,1738639846484,-8890.02,0.00016438,2]
[351580519,1738639846494,-500.0,0.00016438,2]
[351580520,1738639846503,-207.67257652,0.00016438,2]
[351580521,1738639846513,-500.0,0.00016438,2]
[351580522,1738639846522,-500.0,0.00016438,2]
[351580523,1738639846532,-194.27927476,0.00016438,2]
[351580524,1738639901900,10000.0,0.00015012,2]
[351580526,1738639955203,5046.273,0.00018,30]
[351580532,1738640144345,3002.14675119,0.00016,22]
[351580535,1738640338599,249.654303,0.00013973,2]
[351580536,1738640398192,905.2,0.00015,2]
[351580547,1738640840292,809.17,0.00010959,2]
[351580548,1738640871529,180.85,0.00010959,2]
[351580549,1738640882045,254.88,0.00010959,2]
[351580550,1738640892640,212.4,0.00010959,2]
[351580552,1738640903133,177.0,0.00010959,2]
[351580553,1738640924090,219.42,0.00010959,2]
[351580554,1738640934617,182.85,0.00010959,2]
[351580555,1738640945142,292.01,0.00010959,2]
[351580556,1738640955646,243.34,0.00010959,2]
[351580557,1738640966155,202.78,0.00010959,2]
[351580558,1738640976718,344.82,0.00010959,2]
[351580559,1738640987433,361.68,0.00010959,2]
[351580560,1738640997960,301.4,0.00010959,2]
[351580561,1738641008477,364.73,0.00010959,2]
[351580562,1738641018985,303.95,0.00010959,2]
[351580563,1738641029673,296.3,0.00010959,2]
[351580606,1738641032135,-166.0,0.00015068,2]
[351580607,1738641032144,-158.462964,0.00015205,2]
[351580609,1738641032154,-10117.71458175,0.00015323,2]
[351580611,1738641032167,-4401.08852875,0.00015323,2]
[351580613,1738641032187,-455.7915347,0.00015459,2]
[351580614,1738641032198,-8849.78532122,0.00015614,2]
[351580618,1738641032355,-327.99996,0.00015614,2]
[351580619,1738641032368,-514.54304091,0.00015614,2]
[351580620,1738641032411,-348.263794,0.00015614,2]
[351580621,1738641032427,-1535.0,0.00015614,2]
[351580622,1738641032439,-2435.04039731,0.00015614,2]
[351580623,1738641032451,-2124.97131666,0.00015614,2]
[351580624,1738641032461,-700.0,0.00015972,2]
[351580625,1738641032473,-367.1238257,0.00016082,2]
[351580626,1738641032483,-183.28173978,0.00016338,2]
[351580627,1738641032493,-154.4937493,0.00016356,2]
[351580628,1738641032505,-215.6880554,0.00016356,2]
[351580629,1738641032515,-4.66631316,0.00016356,2]
[351580631,1738641032534,-149.82743614,0.00016356,2]
[351580633,1738641032543,-215.6880554,0.00016356,2]
[351580635,1738641032553,-212.00312655,0.00016356,2]
[351580725,1738641037909,-3.68492885,0.00016356,2]
[351580727,1738641037920,-154.4937493,0.00016356,2]
[351580729,1738641037930,-151.62132185,0.00016356,2]
[351580733,1738641037955,-64.06673355,0.00016356,2]
[351580735,1738641037964,-154.4937493,0.00016356,2]
[351580737,1738641037973,-215.6880554,0.00016356,2]
[351580739,1738641037983,-154.4937493,0.00016356,2]
[351580741,1738641037992,-215.6880554,0.00016356,2]
[351580743,1738641038001,-310.1633322,0.00016356,2]
[351580745,1738641038011,-215.6880554,0.00016356,2]
[351580747,1738641038020,-215.1802186,0.00016356,2]
[351580749,1738641038029,-153.0,0.00016431,2]
[351580751,1738641038039,-153.0,0.00016431,2]
[351580753,1738641038048,-153.0,0.00016431,2]
[351580755,1738641038058,-153.0,0.00016431,2]
[351580757,1738641038067,-153.0,0.00016431,2]
[351580759,1738641038076,-153.0,0.00016431,2]
[351580761,1738641038085,-153.0,0.00016431,2]
[351580763,1738641038094,-153.0,0.00016431,2]
[351580765,1738641038103,-153.0,0.00016431,2]
[351580767,1738641038112,-153.0,0.00016431,2]
[351580769,1738641038122,-153.0,0.00016431,2]
[351580771,1738641038131,-153.0,0.00016431,2]
[351580773,1738641038140,-153.0,0.00016432,2]
[351580775,1738641038149,-504.09020489,0.00016437,2]
[351580777,1738641038158,-499.0,0.00016437,2]
[351580779,1738641038168,-156.747483,0.00016438,2]
[351580781,1738641038178,-501.78549675,0.00016438,2]
[351580783,1738641038187,-151.0,0.00016438,2]
[351580785,1738641038196,-505.55804393,0.00016438,2]
[351580787,1738641038205,-152.42895,0.00016438,2]
[351580789,1738641038214,-151.0,0.00016438,2]
[351580791,1738641038224,-500.0,0.00016438,2]
[351580793,1738641038233,-151.606012,0.00016438,2]
[351580795,1738641038243,-151.0,0.00016438,2]
[351580797,1738641038252,-152.87189063,0.00016438,2]
[351580799,1738641038261,-500.0,0.00016438,2]
[351580801,1738641038271,-500.0,0.00016438,2]
[351580803,1738641038281,-151.0,0.00016438,2]
[351580805,1738641038291,-507.85367829,0.00016438,2]
[351580807,1738641038300,-500.0,0.00016438,2]
[351580809,1738641038309,-507.18739853,0.00016438,2]
[351580811,1738641038318,-513.50320746,0.00016438,2]
[351580813,1738641038327,-505.78380565,0.00016438,2]
[351580815,1738641038336,-479.47723556,0.00016438,2]
[351580904,1738641040010,-20.52276444,0.00016438,2]
[351580905,1738641040020,-500.0,0.00016438,2]
[351580906,1738641040030,-500.0,0.00016438,2]
[351580907,1738641040039,-500.0,0.00016438,2]
[351580908,1738641040049,-510.38218126,0.00016438,2]
[351580909,1738641040058,-504.77007568,0.00016438,2]
[351580910,1738641040067,-500.0,0.00016438,2]
[351580911,1738641040076,-504.88703297,0.00016438,2]
[351580912,1738641040086,-500.0,0.00016438,2]
[351580913,1738641040095,-486.61859352,0.00016438,2]
[351580914,1738641040104,-500.0,0.00016438,2]
[351580915,1738641040114,-503.12153926,0.00016438,2]
[351580916,1738641040123,-500.0,0.00016438,2]
[351580918,1738641040133,-500.0,0.00016438,2]
[351580919,1738641040142,-500.0,0.00016438,2]
[351580920,1738641040151,-500.0,0.00016438,2]
[351580921,1738641040160,-500.0,0.00016438,2]
[351580922,1738641040171,-500.0,0.00016438,2]
[351580923,1738641040180,-500.0,0.00016438,2]
[351580924,1738641040190,-629.53621773,0.00016438,2]
[351580925,1738641040199,-504.03573943,0.00016438,2]
[351580926,1738641040208,-500.0,0.00016438,2]
[351580927,1738641040217,-500.0,0.00016438,2]
[351580928,1738641040227,-500.0,0.00016438,2]
[351580929,1738641040366,-500.0,0.00016438,2]
[351580930,1738641040376,-500.0,0.00016438,2]
[351580931,1738641040385,-504.65412125,0.00016438,2]
[351580932,1738641040395,-504.87873502,0.00016438,2]
[351580933,1738641040404,-500.0,0.00016438,2]
[351580934,1738641040414,-500.0,0.00016438,2]
[351580935,1738641040427,-502.88701091,0.00016438,2]
[351580936,1738641040437,-516.62,0.00016438,2]
[351580937,1738641040447,-508.13201198,0.00016438,2]
[351580938,1738641040457,-502.77117916,0.00016438,2]
[351580939,1738641040467,-502.76000953,0.00016438,2]
[351580940,1738641040477,-500.0,0.00016438,2]
[351580941,1738641040487,-500.0,0.00016438,2]
[351580942,1738641040497,-500.0,0.00016438,2]
[351580943,1738641040508,-579.15,0.00016438,2]
[351580944,1738641040517,-500.0,0.00016438,2]
[351580945,1738641040527,-500.0,0.00016438,2]
[351580946,1738641040536,-505.32136392,0.00016438,2]
[351580947,1738641040545,-500.0,0.00016438,2]
[351580948,1738641040555,-500.0,0.00016438,2]
[351580949,1738641040564,-604.93475023,0.00016438,2]
[351580950,1738641040574,-500.0,0.00016438,2]
[351580951,1738641040584,-500.0,0.00016438,2]
[351580952,1738641040593,-590.01,0.00016438,2]
[351580953,1738641040603,-500.0,0.00016438,2]
[351580954,1738641040612,-500.0,0.00016438,2]
[351580955,1738641040621,-513.70377183,0.00016438,2]
[351580956,1738641040631,-1202.21,0.00016438,2]
[351580957,1738641040640,-342.19807783,0.00016438,2]
[351580958,1738641040650,-521.88433194,0.00016438,2]
[351580959,1738641040659,-500.0,0.00016438,2]
[351580960,1738641040670,-535.9,0.00016438,2]
[351580961,1738641040681,-500.0,0.00016438,2]
[351580962,1738641040690,-1144.71,0.00016438,2]
[351580963,1738641040700,-500.0,0.00016438,2]
[351580964,1738641040709,-504.45598343,0.00016438,2]
[351580965,1738641040719,-500.0,0.00016438,2]
[351580966,1738641040728,-500.0,0.00016438,2]
[351580967,1738641040738,-500.0,0.00016438,2]
[351580968,1738641040748,-500.0,0.00016438,2]
[351580969,1738641040757,-500.0,0.00016438,2]
[351580970,1738641040767,-500.0,0.00016438,2]
[351580971,1738641040776,-500.0,0.00016438,2]
[351580972,1738641040786,-914.83,0.00016438,2]
[351580973,1738641040795,-500.0,0.00016438,2]
[351580974,1738641040805,-519.08130178,0.00016438,2]
[351580975,1738641040815,-500.0,0.00016438,2]
[351580976,1738641040824,-390.52389694,0.00016438,2]
[351580977,1738641040835,-512.45493426,0.00016438,2]
[351580978,1738641040844,-500.0,0.00016438,2]
[351580979,1738641040853,-519.05074916,0.00016438,2]
[351580980,1738641040863,-500.0,0.00016438,2]
[351580981,1738641040873,-935.31,0.00016438,2]
[351580982,1738641040882,-519.95921144,0.00016438,2]
[351580983,1738641040892,-500.0,0.00016438,2]
[351580984,1738641040901,-511.13139822,0.00016438,2]
[351580985,1738641040910,-502.08845189,0.00016438,2]
[351580986,1738641040922,-500.0,0.00016438,2]
[351580987,1738641040931,-4083.37,0.00016438,2]
[351580988,1738641040941,-501.13368749,0.00016438,2]
[351580989,1738641040950,-500.0,0.00016438,2]
[351580990,1738641040959,-500.0,0.00016438,2]
[351580991,1738641040968,-500.0,0.00016438,2]
[351580992,1738641040978,-500.0,0.00016438,2]
[351580993,1738641040987,-500.0,0.00016438,2]
[351580994,1738641040996,-604.28064741,0.00016438,2]
[351580995,1738641041005,-500.0,0.00016438,2]
[351580996,1738641041015,-500.0,0.00016438,2]
[351580997,1738641041024,-500.0,0.00016438,2]
[351580998,1738641041033,-500.0,0.00016438,2]
[351580999,1738641041042,-500.0,0.00016438,2]
[351581000,1738641041052,-890.85,0.00016438,2]
[351581001,1738641041061,-500.0,0.00016438,2]
[351581002,1738641041071,-507.39221855,0.00016438,2]
[351581003,1738641041080,-500.0,0.00016438,2]
[351581004,1738641041089,-500.0,0.00016438,2]
[351581005,1738641041098,-500.0,0.00016438,2]
[351581006,1738641041107,-500.0,0.00016438,2]
[351581007,1738641041116,-500.0,0.00016438,2]
[351581008,1738641041126,-305.73491047,0.00016438,2]
[351581009,1738641041135,-500.0,0.00016438,2]
[351581010,1738641041144,-479.51523075,0.00016438,2]
[351581011,1738641041153,-500.0,0.00016438,2]
[351581012,1738641041163,-500.0,0.00016438,2]
[351581013,1738641041173,-501.20781837,0.00016438,2]
[351581014,1738641041183,-500.0,0.00016438,2]
[351581015,1738641041193,-500.0,0.00016438,2]
[351581016,1738641041202,-503.12687138,0.00016438,2]
[351581017,1738641041211,-500.0,0.00016438,2]
[351581018,1738641041220,-500.0,0.00016438,2]
[351581019,1738641041230,-500.0,0.00016438,2]
[351581020,1738641041239,-508.67237825,0.00016438,2]
[351581021,1738641041248,-500.0,0.00016438,2]
[351581022,1738641041258,-500.0,0.00016438,2]
[351581023,1738641041267,-500.0,0.00016438,2]
[351581024,1738641041276,-500.0,0.00016438,2]
[351581025,1738641041286,-505.39866707,0.00016438,2]
[351581026,1738641041295,-500.0,0.00016438,2]
[351581027,1738641041304,-540.48,0.00016438,2]
[351581028,1738641041314,-500.0,0.00016438,2]
[351581029,1738641041323,-500.0,0.00016438,2]
[351581030,1738641041333,-882.57,0.00016438,2]
[351581031,1738641041343,-503.26340398,0.00016438,2]
[351581032,1738641041352,-500.0,0.00016438,2]
[351581033,1738641041361,-500.0,0.00016438,2]
[351581034,1738641041371,-500.0,0.00016438,2]
[351581035,1738641041380,-500.0,0.00016438,2]
[351581036,1738641041390,-638.14624502,0.00016438,2]
[351581037,1738641041399,-500.0,0.00016438,2]
[351581038,1738641041409,-500.0,0.00016438,2]
[351581039,1738641041421,-511.75566441,0.00016438,2]
[351581040,1738641041443,-503.62468703,0.00016438,2]
[351581041,1738641041461,-500.0,0.00016438,2]
[351581042,1738641041470,-500.0,0.00016438,2]
[351581043,1738641041480,-500.0,0.00016438,2]
[351581044,1738641041490,-500.0,0.00016438,2]
[351581045,1738641041499,-500.0,0.00016438,2]
[351581046,1738641041509,-543.53364025,0.00016438,2]
[351581047,1738641041519,-500.0,0.00016438,2]
[351581048,1738641041528,-224.64,0.00016438,2]
[351581049,1738641041538,-500.0,0.00016438,2]
[351581050,1738641041547,-500.0,0.00016438,2]
[351581051,1738641041557,-500.0,0.00016438,2]
[351581052,1738641041566,-500.0,0.00016438,2]
[351581053,1738641041576,-889.4,0.00016438,2]
[351581054,1738641041585,-13174.78849308,0.00016438,2]
[351581055,1738641041601,-504.87898991,0.00016438,2]
[351581056,1738641041639,246.92,0.00010959,2]
[351581074,1738641043074,-800.88,0.00016438,2]
[351581075,1738641043086,-10223.99251701,0.00016438,2]
[351581076,1738641043095,-1216.68,0.00016438,2]
[351581077,1738641043104,-500.0,0.00016438,2]
[351581078,1738641043114,-510.89992072,0.00016438,2]